bitfinex-derivatives/quotes_ETHF0:USTF0_20240924
["timestamp","ask_amount","ask_price","bid_price","bid_amount"]
[1727161295296,0.37863,2641.2,2641.0,0.77]
[1727161295500,0.37862,2641.3,2641.0,1.14866]
[1727161296003,0.3786,2641.5,2641.2,3.58642]
[1727161298498,1.6027,2641.6,2641.2,3.2078]
[1727161298697,0.37861,2641.4,2641.2,3.2078]
[1727161298899,0.37862,2641.3,2641.2,3.2078]
[1727161299097,0.37861,2641.4,2641.2,3.2078]
[1727161300012,0.3727,2641.6,2641.2,3.2078]
[1727161300209,6.88677142,2641.8,2641.3,5.93340276]
[1727161300414,6.88677142,2641.8,2641.4,0.7648]
[1727161300909,0.37858,2641.6,2641.4,0.7648]
[1727161301213,0.3695,2641.9,2641.5,1.23]
[1727161301507,0.37856,2641.7,2641.5,7.43727033]
[1727161301702,1.5995,2641.9,2641.5,7.43727033]
[1727161301703,0.37855,2641.8,2641.5,7.43727033]
[1727161302296,0.3695,2641.9,2641.5,7.43727033]
[1727161302706,0.37856,2641.7,2641.5,7.43727033]
[1727161303006,0.37857,2641.6,2641.5,7.43727033]
[1727161303211,0.37857,2641.6,2641.5,3.2078]
[1727161307411,0.37857,2641.6,2641.5,3.5752]
[1727161314209,1.32501,2641.6,2641.5,3.5752]
[1727161315210,3.98501,2641.6,2641.5,3.2078]
[1727161315412,0.37862,2641.3,2641.2,0.391]
[1727161317210,1.32517,2641.3,2641.2,0.391]
[1727161318319,0.37862,2641.3,2641.2,0.391]
[1727161328427,0.37862,2641.3,2641.2,1.37863287]
[1727161329022,0.37862,2641.3,2641.2,0.391]
[1727161329418,0.37862,2641.3,2641.2,1.37863287]
[1727161329928,0.37862,2641.3,2641.2,0.391]
[1727161330624,0.37862,2641.3,2641.2,1.37863287]
[1727161330928,0.37862,2641.3,2641.2,0.391]
[1727161331432,1.60862,2641.3,2641.2,1.37863287]
[1727161331631,1.60862,2641.3,2641.2,0.391]
[1727161332529,1.60862,2641.3,2641.2,1.37863287]
[1727161333120,1.60862,2641.3,2641.2,1.97057607]
[1727161333326,1.60862,2641.3,2641.2,2.73335247]
[1727161333526,1.60862,2641.3,2641.2,3.3253036]
[1727161334628,1.60862,2641.3,2641.2,2.33767073]
[1727161334833,0.37862,2641.3,2641.2,3.22559004]
[1727161335031,0.37862,2641.3,2641.2,3.81753498]
[1727161335224,0.37862,2641.3,2641.2,2.46281538]
[1727161335426,0.37862,2641.3,2641.2,3.81780004]
[1727161335933,0.3955,2641.5,2641.2,3.81780004]
[1727161336132,0.37859,2641.5,2641.4,0.99040954]
[1727161336332,0.37859,2641.5,2641.4,2.93812753]
[1727161337533,0.37859,2641.5,2641.4,3.4333364]
[1727161338129,0.37859,2641.5,2641.4,2.84139146]
[1727161338429,0.37859,2641.5,2641.4,3.43327476]
[1727161338632,0.37859,2641.5,2641.4,2.84139146]
[1727161338935,0.37859,2641.5,2641.4,3.43328027]
[1727161340931,3.2078,2641.9,2641.4,2.89465897]
[1727161341131,0.8552,2642.6,2641.8,1.23]
[1727161341327,0.7672,2642.6,2642.4,0.98999905]
[1727161341529,1.14564,2642.6,2642.4,0.98999905]
[1727161341728,1.14564,2642.6,2642.5,0.3884]
[1727161342635,0.7672,2642.6,2642.5,0.3884]
[1727161343425,0.3826,2642.6,2642.5,0.3884]
[1727161344427,0.76103,2642.6,2642.5,0.3884]
[1727161344632,0.3826,2642.6,2642.5,0.3884]
[1727161346032,0.37842,2642.7,2642.5,0.3884]
[1727161347136,0.37842,2642.7,2642.5,3.5962]
[1727161348234,0.3745,2642.8,2642.5,3.5962]
[1727161349228,1.10699,2642.9,2642.5,3.5962]
[1727161349432,0.3784,2642.8,2642.5,3.5962]
[1727161351333,0.37842,2642.7,2642.5,3.5962]
[1727161351731,0.37841,2642.8,2642.5,3.5962]
[1727161352127,1.10699,2642.9,2642.5,3.97464]
[1727161353137,0.3784,2642.8,2642.5,3.5962]
[1727161355530,0.3784,2642.8,2642.5,3.97464]
[1727161355743,0.3784,2642.8,2642.5,3.5962]
[1727161356337,0.37842,2642.7,2642.5,3.5962]
[1727161357252,0.37842,2642.7,2642.6,3.2078]
[1727161357646,0.37841,2642.8,2642.6,3.2078]
[1727161358042,1.10699,2642.9,2642.6,3.2078]
[1727161358242,0.3784,2642.8,2642.6,3.2078]
[1727161359543,0.3784,2642.8,2642.5,0.3884]
[1727161359743,0.3784,2642.8,2642.7,3.2078]
[1727161362745,0.7286,2642.9,2642.7,3.2078]
[1727161363047,0.3784,2642.8,2642.7,3.2078]
[1727161364047,1.107,2642.9,2642.7,3.2078]
[1727161364248,0.7286,2642.9,2642.7,3.2078]
[1727161364951,0.7286,2642.9,2642.7,3.58621]
[1727161365150,0.37836,2643.1,2642.7,3.58621]
[1727161365151,0.37837,2643.1,2642.8,0.391]
[1727161365349,0.37837,2643.1,2642.9,0.3835]
[1727161365554,0.37837,2643.0,2642.9,0.3835]
[1727161367555,0.37839,2642.9,2642.8,0.391]
[1727161367755,0.37839,2642.9,2642.8,0.7592]
[1727161368150,0.37838,2643.0,2642.8,3.967]
[1727161369452,0.37839,2642.9,2642.8,3.967]
[1727161369853,0.37839,2642.9,2642.8,0.7592]
[1727161370059,0.37839,2642.9,2642.8,3.967]
[1727161370366,0.37838,2643.0,2642.8,3.967]
[1727161371062,0.37839,2642.9,2642.8,3.967]
[1727161372654,1.23,2643.1,2642.8,3.967]
[1727161372856,0.37837,2643.0,2642.8,3.967]
[1727161373455,0.37839,2642.9,2642.8,3.967]
[1727161374055,0.37839,2642.9,2642.8,0.7592]
[1727161374261,0.37839,2642.9,2642.8,3.967]
[1727161376159,1.60837,2643.1,2642.8,3.967]
[1727161376361,0.94574,2643.6,2642.9,0.76088]
[1727161376565,0.9457,2643.7,2643.0,1.23]
[1727161376566,0.37834,2643.3,2643.0,1.23]
[1727161377064,0.396,2643.4,2643.1,3.58615]
[1727161377253,0.7681,2643.5,2643.2,0.75514]
[1727161377558,0.3948,2643.5,2643.3,0.76083]
[1727161377759,0.77429,2643.6,2643.3,0.3825]
[1727161377959,0.396,2643.6,2643.3,0.3825]
[1727161378262,0.3783,2643.5,2643.3,0.3825]
[1727161378862,1.626,2643.6,2643.3,0.3825]
[1727161379165,0.37831,2643.5,2643.3,0.3825]
[1727161381056,0.3783,2643.5,2643.3,0.3825]
[1727161382658,1.626,2643.6,2643.3,0.3825]
[1727161382659,0.37831,2643.4,2643.3,0.3825]
[1727161385662,1.626,2643.6,2643.2,0.7702]
[1727161385663,0.37833,2643.3,2643.2,0.7702]
[1727161385961,0.37833,2643.3,2643.1,3.2078]
[1727161385962,0.37834,2643.2,2643.1,3.2078]
[1727161386166,1.13624,2643.2,2643.1,3.2078]
[1727161388062,1.13624,2643.2,2642.9,0.37839]
[1727161388063,0.7579,2643.2,2642.9,4.81618]
[1727161388269,1.6289,2643.4,2643.0,0.59152236]
[1727161388455,0.37834,2643.2,2643.1,1.1533]
[1727161389168,0.37833,2643.3,2643.1,1.1533]
[1727161390664,0.77722,2643.4,2643.1,1.1533]
[1727161390858,0.37834,2643.3,2643.2,0.59147971]
[1727161391057,0.37834,2643.3,2643.1,1.1533]
[1727161392960,0.7596,2643.5,2643.2,0.37834]
[1727161393164,1.13791,2643.5,2643.2,3.58614]
[1727161393565,1.13791,2643.5,2643.3,0.59145162]
[1727161393872,0.7596,2643.5,2643.2,3.58614]
[1727161394060,1.13791,2643.5,2643.4,0.98940819]
[1727161395160,5.28657906,2643.8,2643.4,0.98940819]
[1727161395366,0.37829,2643.6,2643.5,1.76050819]
[1727161395673,0.37829,2643.6,2643.5,2.15150819]
[1727161396473,0.37828,2643.7,2643.5,2.15150819]
[1727161396673,6.03767906,2643.8,2643.5,2.15150819]
[1727161396875,0.37828,2643.7,2643.6,0.98940819]
[1727161397170,0.37828,2643.7,2643.5,2.15150819]
[1727161397364,6.03767906,2643.8,2643.6,0.98940819]
[1727161397671,0.37827,2643.7,2643.6,0.98940819]
[1727161398270,0.37827,2643.7,2643.5,5.35930819]
[1727161399175,0.37827,2643.7,2643.5,5.73760819]
[1727161399467,0.37827,2643.7,2643.6,0.98940819]
[1727161400864,5.64907906,2643.8,2643.6,0.98940819]
[1727161400865,4.89797906,2643.8,2643.7,0.37827]
[1727161401074,0.94538,2644.6,2643.7,0.37827]
[1727161401075,0.37811,2644.9,2643.8,0.94565]
[1727161401278,0.7406,2645.1,2644.6,1.23]
[1727161401469,2.5637657,2645.4,2645.0,1.23]
[1727161401470,0.37805,2645.3,2645.0,1.23]
[1727161401767,0.3641,2645.4,2645.0,1.23]
[1727161401768,0.74213,2645.4,2645.0,1.60808]
[1727161401976,0.74213,2645.4,2644.9,0.37809]
[1727161401977,0.3641,2645.4,2644.9,0.37809]
[1727161402174,0.3641,2645.4,2644.9,1.23]
[1727161402572,0.3641,2645.4,2644.8,3.2078]
[1727161402573,1.23,2645.2,2644.8,3.2078]
[1727161402775,1.23,2645.0,2644.8,3.2078]
[1727161403074,1.6081,2645.0,2644.8,3.2078]
[1727161404378,0.37809,2645.0,2644.8,3.2078]
[1727161404970,0.3781,2644.9,2644.8,3.2078]
[1727161405177,0.3781,2644.9,2644.5,3.2078]
[1727161405178,6.8026,2644.9,2644.5,3.2078]
[1727161405474,0.37813,2644.7,2644.5,3.2078]
[1727161405967,0.37812,2644.8,2644.5,3.2078]
[1727161406165,0.73991,2644.9,2644.5,3.2078]
[1727161406373,0.3618,2644.9,2644.5,3.2078]
[1727161406575,0.37812,2644.8,2644.5,3.2078]
[1727161406772,0.73991,2644.9,2644.5,3.2078]
[1727161407168,0.37812,2644.8,2644.5,3.2078]
[1727161408572,0.37813,2644.7,2644.5,3.2078]
[1727161409970,0.37813,2644.8,2644.5,3.2078]
[1727161410179,0.37813,2644.7,2644.5,3.2078]
[1727161410975,0.3618,2644.9,2644.5,3.2078]
[1727161411269,0.37811,2644.8,2644.5,3.2078]
[1727161412078,0.37811,2644.8,2644.5,3.58595]
[1727161413682,0.3618,2644.9,2644.6,0.37814]
[1727161413880,0.37812,2644.8,2644.5,3.2078]
[1727161414077,0.37812,2644.8,2644.6,0.37814]
[1727161414482,0.37812,2644.8,2644.5,3.58595]
[1727161414680,0.37813,2644.7,2644.5,3.58595]
[1727161416992,0.3618,2644.9,2644.5,3.2078]
[1727161417292,0.37814,2644.7,2644.5,3.58595]
[1727161417783,0.37814,2644.7,2644.6,3.2078]
[1727161420781,2.66,2645.0,2644.6,3.2078]
[1727161420782,0.94512,2645.3,2644.6,3.2078]
[1727161420982,0.37813,2644.7,2644.6,3.2078]
[1727161423685,0.76233,2644.8,2644.6,3.2078]
[1727161423889,0.37813,2644.8,2644.6,3.58594]
[1727161424085,0.37811,2644.8,2644.6,3.2078]
[1727161424291,0.74171,2644.9,2644.6,3.58594]
[1727161424492,0.37811,2644.9,2644.6,3.58594]
[1727161425394,0.37812,2644.8,2644.6,3.58594]
[1727161426193,0.37812,2644.8,2644.7,22.8]
[1727161426594,0.37813,2644.7,2644.6,3.2078]
[1727161429589,1.60813,2644.7,2644.6,3.2078]
[1727161430293,0.76183,2644.7,2644.6,3.2078]
[1727161440202,0.37815,2644.6,2644.5,3.2078]
[1727161440901,0.37815,2644.6,2644.5,4.19505128]
[1727161441998,0.3837,2644.8,2644.5,4.19505128]
[1727161442206,0.37814,2644.7,2644.5,4.57321128]
[1727161442398,0.37814,2644.6,2644.5,4.68867692]
[1727161442595,0.37814,2644.6,2644.5,6.59365612]
[1727161443901,0.37814,2644.6,2644.5,6.59367987]
[1727161444104,0.37814,2644.6,2644.5,7.53952721]
[1727161444293,0.37814,2644.6,2644.5,6.05865029]
[1727161445304,0.37814,2644.6,2644.5,6.49615503]
[1727161445605,0.37814,2644.6,2644.5,8.03315808]
[1727161446200,0.37814,2644.6,2644.5,9.73572773]
[1727161446398,0.37814,2644.6,2644.5,10.86749626]
[1727161447105,0.37814,2644.6,2644.5,13.33562446]
[1727161448008,0.37814,2644.6,2644.5,10.86749626]
[1727161448203,0.37814,2644.6,2644.5,13.33562446]
[1727161448407,0.37814,2644.6,2644.5,10.86749626]
[1727161448709,0.37814,2644.6,2644.5,8.15192743]
[1727161449002,0.37814,2644.6,2644.5,10.39848349]
[1727161449203,0.37814,2644.6,2644.5,10.09980099]
[1727161449397,0.37814,2644.6,2644.5,13.33967212]
[1727161449796,0.37814,2644.6,2644.5,10.87154392]
[1727161449998,6.05046,2644.6,2644.5,3.8683875]
[1727161450199,6.41506,2644.6,2644.5,0.5911612]
[1727161450399,0.37816,2644.5,2644.4,0.99172978]
[1727161450599,1.60816,2644.5,2644.4,1.58301461]
[1727161450900,1.60816,2644.5,2644.4,3.3967232]
[1727161451100,1.60816,2644.5,2644.4,4.34271226]
[1727161451512,0.37816,2644.5,2644.4,4.34271226]
[1727161451805,0.37814,2644.7,2644.4,8.04491353]
[1727161452002,0.37814,2644.7,2644.6,1.98271917]
[1727161452196,0.37814,2644.7,2644.6,4.24683054]
[1727161452398,0.37814,2644.7,2644.6,5.20531537]
[1727161452905,0.37814,2644.7,2644.6,8.36078649]
[1727161453103,2.4757657,2645.3,2644.6,11.81488177]
[1727161453403,2.4757657,2645.3,2645.2,0.99087311]
[1727161453404,0.3884,2645.3,2645.2,0.99087311]
[1727161453706,0.3884,2645.3,2645.2,1.58215794]
[1727161453707,1.99644,2645.3,2645.2,1.58215794]
[1727161453901,5.77644,2645.3,2645.2,1.58215794]
[1727161454206,1.99644,2645.3,2645.2,1.58215794]
[1727161454407,3.42644,2645.3,2645.2,1.58215794]
[1727161455514,3.42644,2645.3,2645.2,0.99087311]
[1727161455713,3.42644,2645.3,2645.2,1.58194219]
[1727161457008,3.42644,2645.3,2645.2,0.59106908]
[1727161457209,0.37806,2645.2,2645.1,0.99087311]
[1727161457407,0.37806,2645.2,2645.1,1.58195872]
[1727161457806,0.37806,2645.2,2645.1,2.89815872]
[1727161458206,0.37806,2645.2,2645.1,2.89803576]
[1727161458809,0.37806,2645.2,2645.1,2.30695015]
[1727161459020,0.37806,2645.2,2645.1,1.58194388]
[1727161459203,3.42645,2645.3,2645.1,2.30694783]
[1727161459512,0.37806,2645.2,2645.1,1.58194706]
[1727161459815,0.37806,2645.2,2645.1,2.89789573]
[1727161460916,0.37806,2645.2,2645.1,2.89777785]
[1727161461116,0.37806,2645.2,2645.1,1.58194328]
[1727161461917,3.42646,2645.3,2645.1,1.58194328]
[1727161462118,3.42646,2645.3,2645.1,0.99087311]
[1727161462309,0.37806,2645.2,2645.1,0.99087311]
[1727161463415,0.37806,2645.2,2645.1,1.5819509]
[1727161464011,0.37806,2645.2,2645.1,2.89874796]
[1727161464211,0.37806,2645.2,2645.1,1.5819509]
[1727161465621,0.37806,2645.2,2645.1,0.99087311]
[1727161465816,0.37806,2645.2,2645.1,1.58194704]
[1727161468918,0.37806,2645.2,2645.1,0.99087311]
[1727161469125,0.37806,2645.2,2645.1,1.581947]
[1727161469511,0.37806,2645.2,2645.1,0.99087311]
[1727161469722,0.37806,2645.2,2645.1,1.58194363]
[1727161469923,0.37806,2645.2,2645.1,0.59107052]
[1727161470524,0.37806,2645.2,2645.1,0.5910761]
[1727161470824,0.74316,2645.2,2645.1,0.5910761]
[1727161471217,0.74316,2645.2,2645.1,1.58194921]
[1727161471921,0.3651,2645.2,2645.1,1.58194921]
[1727161472225,0.37801,2645.6,2645.2,0.37806]
[1727161472427,0.73819,2645.7,2645.4,3.2078]
[1727161472619,0.73819,2645.7,2645.5,0.375]
[1727161473129,0.378,2645.6,2645.5,0.375]
[1727161474330,1.608,2645.6,2645.5,0.375]
[1727161475428,0.37801,2645.5,2645.4,4.19749669]
[1727161475624,0.37801,2645.5,2645.4,3.2078]
[1727161476334,5.10305,2645.5,2645.4,3.2078]
[1727161476531,5.10305,2645.5,2645.1,1.37409669]
[1727161476532,0.37806,2645.2,2645.1,1.37409669]
[1727161476837,1.60806,2645.2,2645.1,0.3844]
[1727161481544,0.37806,2645.2,2645.1,0.3844]
[1727161481941,1.23,2645.3,2645.1,0.3844]
[1727161482343,1.23,2645.3,2645.1,1.37409669]
[1727161482644,0.945,2645.7,2645.3,0.37804]
[1727161482645,0.37799,2645.7,2645.3,0.37804]
[1727161482844,0.77579,2645.7,2645.5,3.2078]
[1727161483253,0.77579,2645.7,2645.6,0.3717]
[1727161484451,0.3978,2645.7,2645.6,0.3717]
[1727161485454,0.77579,2645.7,2645.6,0.3717]
[1727161485652,2.00579,2645.7,2645.6,0.3717]
[1727161485845,0.3978,2645.7,2645.6,0.3717]
[1727161486562,1.60797,2645.9,2645.6,0.3717]
[1727161486758,1.98247,2645.9,2645.6,0.3717]
[1727161487553,0.37797,2645.8,2645.6,0.3717]
[1727161488257,1.6045,2645.9,2645.6,0.3717]
[1727161488646,0.37797,2645.8,2645.6,0.3717]
[1727161492751,1.60799,2645.7,2645.6,0.3717]
[1727161492953,0.37798,2645.8,2645.6,0.3717]
[1727161493153,1.60798,2645.8,2645.6,0.3717]
[1727161496244,1.60798,2645.8,2645.6,3.5795]
[1727161496854,1.60798,2645.8,2645.6,0.3717]
[1727161497251,1.60798,2645.8,2645.6,4.56919669]
[1727161499858,0.37799,2645.7,2645.6,4.56919669]
[1727161500063,1.60798,2645.8,2645.6,4.19749669]
[1727161500251,0.37799,2645.7,2645.6,3.2078]
[1727161500458,1.60798,2645.8,2645.6,3.2078]
[1727161500752,1.60798,2645.8,2645.6,4.19749669]
[1727161501761,0.3745,2645.9,2645.6,4.19749669]
[1727161501961,0.37798,2645.8,2645.6,4.19749669]
[1727161502865,1.6045,2645.9,2645.6,4.19749669]
[1727161503069,1.6045,2645.9,2645.7,0.3661]
[1727161503666,0.37797,2645.8,2645.7,0.3661]
[1727161503964,0.3745,2645.9,2645.7,0.74409]
[1727161504164,0.3745,2645.9,2645.7,1.73378669]
[1727161504464,0.3745,2645.9,2645.8,0.3673]
[1727161504666,0.75246,2645.9,2645.8,0.7392]
[1727161510863,0.3745,2645.9,2645.8,0.7392]
[1727161511172,0.75246,2645.9,2645.8,0.7392]
[1727161515281,0.75246,2645.9,2645.8,1.33008574]
[1727161515872,0.75246,2645.9,2645.8,1.33008708]
[1727161516079,0.75246,2645.9,2645.8,1.72889669]
[1727161516272,0.75246,2645.9,2645.8,2.31978398]
[1727161516475,0.75246,2645.9,2645.8,0.59088729]
[1727161516672,0.75246,2645.9,2645.7,0.98969669]
[1727161517380,0.75246,2645.9,2645.7,1.37749669]
[1727161520171,0.37797,2645.8,2645.7,1.37749669]
[1727161521373,1.60797,2645.8,2645.7,0.98969669]
[1727161521675,1.60797,2645.8,2645.7,1.58060553]
[1727161522381,1.60797,2645.8,2645.7,0.98969669]
[1727161522583,1.60797,2645.8,2645.7,1.58062989]
[1727161522783,0.37799,2645.7,2645.6,4.19749669]
[1727161522982,0.37799,2645.7,2645.6,6.08003744]
[1727161523173,0.37799,2645.7,2645.6,5.09034075]
[1727161523580,0.37799,2645.7,2645.6,1.57951252]
[1727161524286,0.37799,2645.7,2645.6,2.87144433]
[1727161524583,1.60797,2645.8,2645.6,2.87144433]
[1727161524783,1.23,2645.8,2645.7,1.57972018]
[1727161525179,1.97925342,2646.2,2645.7,7.88180354]
[1727161525384,0.3882,2646.1,2645.9,4.19656641]
[1727161525589,0.37792,2646.2,2646.0,2.87138663]
[1727161525590,0.37793,2646.2,2646.0,2.87138663]
[1727161525889,0.37793,2646.1,2646.0,0.98876641]
[1727161526182,0.37793,2646.1,2646.0,1.88248775]
[1727161526988,0.37792,2646.2,2646.0,3.36887789]
[1727161527187,0.37792,2646.2,2646.1,0.98871145]
[1727161527391,0.37792,2646.2,2646.1,1.57955517]
[1727161527580,0.3779,2646.3,2646.1,8.37831286]
[1727161527791,0.3779,2646.3,2646.2,1.97162917]
[1727161528090,1.6079,2646.3,2646.2,2.8718926]
[1727161528279,1.9789,2646.3,2646.2,1.57962108]
[1727161528482,1.9789,2646.3,2646.2,0.59083563]
[1727161529389,2.92366,2646.3,2646.2,0.59083563]
[1727161529892,0.37791,2646.2,2646.1,0.98878545]
[1727161530087,0.37791,2646.2,2646.1,1.57964477]
[1727161532381,0.74451,2646.2,2646.1,1.57964477]
[1727161533003,1.6893,2646.2,2646.1,1.57964477]
[1727161533693,1.6893,2646.2,2646.1,0.59085932]
[1727161533997,0.37793,2646.1,2646.0,0.98878545]
[1727161534301,1.97133,2646.1,2646.0,2.28081127]
[1727161534494,1.97133,2646.1,2646.0,2.87169706]
[1727161534795,1.97133,2646.1,2646.0,1.88291161]
[1727161535098,1.97133,2646.1,2646.0,2.87169395]
[1727161537197,1.97133,2646.1,2646.0,2.87097176]
[1727161538394,0.74133,2646.1,2646.0,2.8709277]
[1727161538691,0.74133,2646.1,2646.0,1.57940484]
[1727161538894,1.97925342,2646.4,2646.2,0.37791]
[1727161539096,2.73900342,2646.7,2646.3,6.67828278]
[1727161539399,1.13435,2646.7,2646.5,4.19588025]
[1727161539897,1.13435,2646.7,2646.6,0.96663273]
[1727161540299,1.13435,2646.7,2646.6,0.3759]
[1727161542496,0.3746,2646.7,2646.6,0.3759]
[1727161542901,2.5325,2646.8,2646.6,1.36398025]
[1727161543095,2.91033,2646.8,2646.7,1.34430542]
[1727161543299,2.91033,2646.8,2646.7,0.7536]
[1727161543498,2.5325,2646.8,2646.7,0.7536]
[1727161543697,1.15412,2646.9,2646.7,0.7536]
[1727161543698,0.387,2646.9,2646.7,0.7536]
[1727161543902,0.76482,2646.9,2646.7,1.74168025]
[1727161544493,0.76482,2646.9,2646.7,0.7536]
[1727161545198,0.387,2646.9,2646.8,3.2078]
[1727161545400,0.783,2647.1,2646.8,3.2078]
[1727161545401,1.1608,2647.1,2646.8,3.2078]
[1727161545900,1.1608,2647.1,2646.9,0.3965]
[1727161546111,0.37778,2647.2,2646.9,0.3965]
[1727161546509,0.37779,2647.1,2646.9,0.3965]
[1727161548405,0.3778,2647.0,2646.9,0.3965]
[1727161548607,0.37779,2647.1,2646.9,0.3965]
[1727161551105,1.996,2647.3,2646.9,0.3965]
[1727161551106,0.3778,2647.0,2646.9,0.3965]
[1727161551315,0.7766,2647.0,2646.9,0.3965]
[1727161557620,0.3988,2647.0,2646.9,0.3965]
[1727161557927,2.17424,2647.8,2646.9,4.1741]
[1727161558223,0.37773,2647.5,2647.2,4.4378]
[1727161558411,0.37772,2647.6,2647.4,1.23]
[1727161558811,0.37772,2647.6,2647.3,1.1434]
[1727161558812,1.6122,2647.8,2647.3,2.3734]
[1727161559018,1.60774,2647.4,2647.3,0.7526]
[1727161559221,1.60774,2647.4,2647.3,0.3752]
[1727161559419,0.37776,2647.3,2647.2,3.2078]
[1727161559618,1.60776,2647.3,2647.2,3.2078]
[1727161559917,2.00576,2647.3,2647.2,3.2078]
[1727161560722,2.00576,2647.3,2647.0,0.3764]
[1727161560723,0.37779,2647.1,2647.0,0.3764]
[1727161564115,0.3778,2647.0,2646.9,3.9637]
[1727161564318,1.1378,2647.0,2646.9,3.5729]
[1727161565521,2.3678,2647.0,2646.9,3.2078]
[1727161565715,3.2078,2647.6,2646.9,3.2078]
[1727161565716,0.37773,2647.6,2646.9,6.9854]
[1727161565917,0.00383067,2648.1,2647.5,1.23]
[1727161566224,0.00383067,2648.1,2647.1,0.98808025]
[1727161566225,0.77138067,2648.1,2647.7,4.4378]
[1727161566722,0.77138067,2648.1,2647.7,27.2378]
[1727161566923,0.37766,2648.0,2647.7,4.4378]
[1727161567126,1.60769,2647.8,2647.7,3.2078]
[1727161567425,1.23,2647.8,2647.7,3.2078]
[1727161567628,0.39373067,2648.1,2647.5,3.2078]
[1727161567629,1.16257067,2648.1,2647.5,3.2078]
[1727161567925,2.01493067,2648.1,2647.5,3.2078]
[1727161568120,2.39257067,2648.1,2647.5,3.2078]
[1727161568325,2.65,2647.7,2647.5,3.2078]
[1727161568623,3.0277,2647.7,2647.5,3.2078]
[1727161568832,1.1361,2647.6,2647.5,3.2078]
[1727161570331,0.3763,2647.6,2647.5,3.2078]
[1727161572926,0.75401,2647.6,2647.5,3.2078]
[1727161573125,13.3609,2647.6,2647.0,3.2078]
[1727161573431,2.65,2647.3,2647.0,3.2078]
[1727161573932,0.3738,2647.2,2647.0,3.2078]
[1727161574134,0.75158,2647.2,2647.0,3.2078]
[1727161574328,1.1302,2647.2,2647.0,3.2078]
[1727161574520,0.37779,2647.1,2647.0,3.2078]
[1727161575434,1.50798,2647.2,2647.0,3.2078]
[1727161576331,0.37779,2647.1,2647.0,3.2078]
[1727161576934,3.02779,2647.1,2647.0,3.2078]
[1727161577229,0.3778,2647.0,2646.8,0.7357]
[1727161577432,2.65,2646.9,2646.5,3.2078]
[1727161577625,2.65,2646.7,2646.5,3.9587]
[1727161578133,3.39515,2646.7,2646.5,3.9587]
[1727161578436,3.0173,2646.7,2646.5,3.9587]
[1727161580330,0.3673,2646.7,2646.5,3.9587]
[1727161580534,2.65,2647.0,2646.5,3.9587]
[1727161580739,3.02781,2647.0,2646.5,3.9587]
[1727161581036,0.362,2647.1,2646.8,3.2078]
[1727161581333,3.38979,2647.1,2646.9,0.7809]
[1727161581738,0.3778,2647.0,2646.5,4.57088025]
[1727161582032,0.3778,2647.0,2646.6,0.7796]
[1727161583341,3.38979,2647.1,2646.6,0.7796]
[1727161583531,3.38979,2647.1,2646.6,1.76768025]
[1727161583737,3.38979,2647.1,2646.6,2.14554025]
[1727161584243,0.3778,2647.0,2646.6,2.14554025]
[1727161584436,0.3778,2647.0,2646.6,1.76768025]
[1727161584633,0.3778,2647.0,2646.6,2.14553025]
[1727161585339,0.3778,2647.0,2646.7,0.59067704]
[1727161585536,0.3778,2647.0,2646.7,0.98808025]
[1727161586546,0.37782,2646.9,2646.6,1.76768025]
[1727161586743,0.37782,2646.9,2646.7,0.98808025]
[1727161587745,3.012,2647.1,2646.8,3.2078]
[1727161587746,0.362,2647.1,2646.8,3.2078]
[1727161588051,0.362,2647.1,2646.8,4.57370025]
[1727161588242,0.73979,2647.1,2646.8,4.19588025]
[1727161589342,0.37781,2647.0,2646.8,4.19588025]
[1727161589546,0.37781,2647.0,2646.8,3.2078]
[1727161590342,3.38979,2647.1,2646.8,3.2078]
[1727161591549,3.38979,2647.1,2646.9,0.3863]
[1727161594048,0.3778,2647.0,2646.9,0.3863]
[1727161595845,0.37781,2646.9,2646.8,3.2078]
[1727161596047,0.77651,2646.9,2646.8,3.2078]
[1727161597461,3.42651,2646.9,2646.8,3.2078]
[1727161598848,3.82411,2646.9,2646.8,3.2078]
[1727161599253,3.82411,2646.9,2646.3,23.17789]
[1727161599254,3.7784,2646.8,2646.1,0.354]
[1727161599457,3.7784,2646.8,2645.9,0.3647]
[1727161599458,0.37794,2646.0,2645.9,0.3647]
[1727161599852,4.15714,2646.0,2645.9,0.3647]
[1727161600551,6.80714,2646.0,2645.9,0.3647]
[1727161601154,6.80714,2646.0,2645.5,0.37801]
[1727161601155,0.37797,2645.9,2645.5,0.37801]
[1727161601358,2.65,2646.0,2645.2,0.3835]
[1727161601359,3.5858,2645.6,2645.2,0.3835]
[1727161601556,2.65,2645.5,2645.2,1.12775]
[1727161601758,2.65,2645.5,2645.3,0.3869]
[1727161603161,3.02801,2645.5,2645.3,0.3869]
[1727161603659,0.37803,2645.4,2645.3,0.3869]
[1727161603851,2.65,2645.5,2645.3,0.3869]
[1727161604054,0.37803,2645.4,2645.3,0.3869]
[1727161605159,0.37804,2645.3,2645.2,0.7497]
[1727161605356,3.02804,2645.3,2645.2,0.7497]
[1727161607451,0.3781,2644.9,2644.8,22.8]
[1727161607653,0.37811,2644.8,2644.4,0.37817]
[1727161607859,2.65,2644.7,2644.4,0.74227]
[1727161608060,2.65,2644.7,2644.4,4.70134111]
[1727161608260,2.65,2644.7,2644.5,22.8]
[1727161608666,2.65,2644.7,2644.6,0.3744]
[1727161609772,3.02813,2644.7,2644.6,0.3744]
[1727161610361,6.23593,2644.7,2644.6,0.3744]
[1727161611067,6.80313,2644.7,2644.0,0.3832]
[1727161611369,2.65,2644.3,2644.2,0.3649]
[1727161611772,3.02819,2644.3,2644.2,0.3649]
[1727161611956,2.65,2644.3,2644.2,0.3649]